[Event "3rd Manaus Open 2024"]
[Site "Manaus"]
[Date "2024.10.12"]
[Round "2.2"]
[White "Silverio, Vitor Luis De Jesus"]
[Black "Fier, Alexandr"]
[Result "0-1"]
[ECO "B56"]
[WhiteElo "2016"]
[BlackElo "2539"]
[Annotator "TA"]
[PlyCount "92"]
[EventDate "2024.10.05"]
[EventType "swiss"]
[EventCountry "BRA"]
[SourceTitle "playchess.com"]
[Source "ChessBase"]
[SourceQuality "1"]
[TimeControl "5400+30"]

{[%evp 12,92,23,22,26,6,22,19,18,-7,-6,-46,-50,-46,-46,-45,-33,-56,-61,-54,-46,-59,-56,-119,-124,-126,-102,-104,-110,-110,-56,-53,-41,-31,13,-12,-2,-7,-4,-14,47,-13,-12,-14,-18,-44,-44,-42,-44,-40,-38,-40,-40,-40,-40,-66,-40,-104,-100,-102,-104,-96,-100,-120,-119,-124,-83,-83,-83,-83,-83,-577,-577,-523,-518,-1051,-958,-6475,-5964,-6091,-5604,-2228,-1732]} 1. e4 {[%emt 0:03:44]} c5 {[%emt 0:00:02]} 2. Nf3 {[%emt 0:00:09]} d6 {[%emt 0:00:03]} 3. d4 {[%emt 0:00:23]} cxd4 {[%emt 0:00:03]} 4. Nxd4 {[%emt 0:00:08]} Nf6 {[%emt 0:00:02]} 5. Nc3 {[%emt 0:00:06]} Bd7 {[%emt 0:00:04]} 6. Bg5 {[%emt 0:01:03]} e6 {[%emt 0:00:05]} 7. Qd2 {[%emt 0:00:52]} a6 {[%emt 0:00:32]} 8. O-O-O {[%emt 0:00:36]} h6 {[%emt 0:00:05]} 9. Bxf6 {[%emt 0:02:27]} Qxf6 {[%emt 0:00:10] Die Stellung ist ausgeglichen.} 10. Bc4 {[%emt 0:02:53]} Nc6 {[%emt 0:00:16]} 11. Bb3 {[%emt 0:01:45]} Nxd4 {[%emt 0:00:11]} 12. Qxd4 {[%emt 0:00:08]} Qxd4 {[%emt 0:00:03]} 13. Rxd4 {[%emt 0:00:08]} Bc6 {[%emt 0:00:38]} 14. f3 {[%emt 0:00:19]} g5 {[%emt 0:00:32]} 15. a4 {[%emt 0:05:48]} Ke7 {[%emt 0:01:08]} 16. a5 {[%emt 0:07:15]} Bg7 {[%emt 0:00:07]} 17. Rd3 {[%emt 0:00:13]} (17. Rb4 $15) 17... Be5 $17 {[%emt 0:00:19]} 18. Kb1 {[%emt 0:03:34]} Rag8 {[%emt 0:01:32]} 19. h3 {[%emt 0:02:44]} h5 {[%emt 0:00:08]} 20. Ba4 {[%emt 0:01:54]} Bxc3 {[%emt 0:00:44]} (20... Rb8 $17 {Und ...Bxc3 würde nun gewinnen.} 21. Bxc6 bxc6) 21. Bxc6 $15 {[%emt 0:00:07]} Bxb2 {[%emt 0:00:02]} ({Natürlich nicht} 21... Bxa5 22. Bxb7 Rb8 23. Bxa6 $14) 22. Bxb7 {[%emt 0:01:20]} Be5 {[%emt 0:00:05]} 23. Rb3 {[%emt 0:03:45][%cal Ob1a2]} Rb8 {[%emt 0:00:04][%cal Oe5c3]} 24. Kc1 {[%emt 0:15:57][%cal Oc1d2]} Kf6 {[%emt 0:02:17]} 25. Kd2 {[%emt 0:01:38][%cal Oh1b1]} Bd4 {[%emt 0:00:04]} ({Vorzuziehen ist} 25... Rhe8 $11) 26. h4 {[%emt 0:20:18]} (26. Kd3 $14 Be5 27. Rhb1) 26... Rhg8 {[%emt 0:00:40]} 27. Bxa6 {[%emt 0:03:10]} Ra8 {[%emt 0:00:29]} 28. Be2 {[%emt 0:06:53]} Rxa5 {[%emt 0:00:28]} 29. hxg5+ {[%emt 0:00:27]} Rgxg5 {[%emt 0:00:03]} 30. g4 {[%emt 0:01:24]} hxg4 {[%emt 0:00:32]} 31. fxg4 {[%emt 0:00:10]} Ra7 {[%emt 0:00:51]} 32. Rh5 {[%emt 0:02:35]} Be5 {[%emt 0:01:27]} 33. Rbh3 {[%emt 0:03:11]} Bf4+ {[%emt 0:00:18]} 34. Kd3 {[%emt 0:00:45]} ({Besser ist} 34. Ke1 $15) 34... Ra3+ $17 {[%emt 0:00:06]} 35. Kc4 {[%emt 0:01:29]} Ra4+ {[%emt 0:00:04]} 36. Kd3 {[%emt 0:00:17]} Ke5 {[%emt 0:00:06] Schwarz hat aktiveres Spiel.} 37. Rxg5+ {[%emt 0:01:51]} Bxg5 {[%emt 0:00:08][%mdl 4096] Endspiel. KRB-KRB} 38. Rh5 {[%emt 0:06:56]} f6 {[%emt 0:00:05]} 39. Bf3 {[%emt 0:00:31]} Ra3+ {[%emt 0:00:08]} 40. c3 {[%emt 0:00:03]} Ra2 {[%emt 0:00:08] Weiss muss nun ...d5 beachten.} 41. Rh3 $2 {[%emt 0:00:30][%mdl 8192] [#] Danach ist Weiß chancenlos.} (41. Kc4 $17) 41... d5 $1 $19 {[%emt 0:00:20] Schwarz steht klar auf Gewinn.} 42. exd5 {[%emt 0:00:18]} exd5 {[%emt 0:00:03][%csl Gg5][%cal Ra2d2]} 43. c4 {[%emt 0:00:29]} (43. Bxd5 $142 Kxd5 44. c4+ Kc5 45. Rh8) 43... Ra3+ {[%emt 0:00:04]} 44. Kc2 {[%emt 0:01:40]} dxc4 {[%emt 0:00:04]} (44... Kf4 45. cxd5 Rxf3 46. Rh8 Kxg4 47. Rh1) 45. Kb2 {[%emt 0:00:16]} Rd3 {[%emt 0:00:05]} 46. Kc2 {[%emt 0:00:19]} Kd4 {[%emt 0:00:06] Gewichteter Fehlerwert: Weiß=0.61/Schwarz=0.19 (sehr präzise) .  Verlustzug:     	Weiß=1     	---        Fehler:       	Weiß=4     	Schwarz=2     Ungenau:       	Weiß=4     	Schwarz=3     OK:         	Weiß=9     	Schwarz=17    Bester:       	Weiß=4     	Schwarz=2     Stark:        	---       	Schwarz=1} 0-1

[Event "3rd Manaus Open 2024"]
[Site "Manaus"]
[Date "2024.10.12"]
[Round "2.4"]
[White "Cordero, Daniela"]
[Black "Delgado Ramirez, Neuris"]
[Result "0-1"]
[ECO "D05"]
[WhiteElo "2004"]
[BlackElo "2496"]
[Annotator "RC"]
[PlyCount "77"]
[EventDate "2024.10.05"]
[EventType "swiss"]
[EventCountry "BRA"]
[SourceTitle "playchess.com"]
[Source "ChessBase"]
[SourceQuality "1"]
[TimeControl "5400+30"]

1. d4 {[%emt 0:05:43]} Nf6 {[%emt 0:00:11]} 2. Nf3 {[%emt 0:00:10]} e6 {[%emt 0:00:13]} 3. e3 {[%emt 0:00:09]} c5 {[%emt 0:00:17]} 4. Bd3 {[%emt 0:00:23]} Nc6 {[%emt 0:00:14]} 5. O-O {[%emt 0:00:56]} d5 {[%emt 0:00:26]} 6. b3 {[%emt 0:00:25]} Be7 {[%emt 0:02:12]} 7. Bb2 {[%emt 0:00:14]} O-O {[%emt 0:01:11]} 8. a3 {[%emt 0:00:54]} b6 {[%emt 0:01:28]} 9. Nbd2 {[%emt 0:02:01]} Bb7 {[%emt 0:00:53]} 10. Ne5 {[%emt 0:05:01]} a6 {[%emt 0:10:39]} 11. Ndf3 {[%emt 0:07:13]} Nxe5 {[%emt 0:03:23]} 12. Nxe5 {[%emt 0:00:23]} b5 {[%emt 0:00:27]} 13. dxc5 {[%emt 0:03:52]} Bxc5 {[%emt 0:00:33]} 14. Ng4 {[%emt 0:08:44]} Ne4 {[%emt 0:03:33]} 15. Qe2 {[%emt 0:12:52]} f6 {[%emt 0:03:33]} 16. f3 {[%emt 0:02:54]} Nd6 {[%emt 0:03:14]} 17. Kh1 {[%emt 0:05:57]} e5 {[%emt 0:02:58]} 18. Qe1 {[%emt 0:04:02]} e4 {[%emt 0:02:26]} 19. fxe4 {[%emt 0:00:44]} dxe4 {[%emt 0:00:09]} 20. Be2 {[%emt 0:00:38]} Qe7 {[%emt 0:05:27]} 21. Qg3 {[%emt 0:04:00]} Kh8 {[%emt 0:00:07]} 22. h4 {[%emt 0:06:13]} Bc8 {[%emt 0:00:57]} 23. Nxf6 {[%emt 0:10:45]} gxf6 {[%emt 0:01:25]} 24. Rxf6 {[%emt 0:02:14]} Rxf6 {[%emt 0:03:23]} 25. Qg5 {[%emt 0:00:21]} Ne8 {[%emt 0:00:27]} 26. Rf1 {[%emt 0:00:51]} Bxa3 {[%emt 0:07:29]} 27. Ba1 {[%emt 0:01:38]} Ra7 {[%emt 0:03:43]} 28. Rxf6 {[%emt 0:00:35]} Ng7 {[%emt 0:00:27]} 29. h5 {[%emt 0:07:55]} Rd7 {[%emt 0:18:08]} 30. h6 {[%emt 0:00:44]} Kg8 {[%emt 0:00:10]} 31. hxg7 {[%emt 0:03:46]} Qd8 {[%emt 0:00:39]} 32. Bh5 {[%emt 0:03:40]} h6 {[%emt 0:03:35]} 33. Qf4 {[%emt 0:00:30]} Rxg7 {[%emt 0:01:39]} 34. Bd4 {[%emt 0:00:28]} Qd5 {[%emt 0:00:41]} 35. g4 {[%emt 0:00:33]} Qg5 {[%emt 0:03:53]} 36. Bf7+ {[%emt 0:00:30]} Kh7 {[%emt 0:01:46]} 37. Qxe4+ {[%emt 0:00:05]} Kh8 {[%emt 0:00:05]} 38. Qe8+ {[%emt 0:00:30]} Kh7 {[%emt 0:00:03]} 39. Bg6+ {[%emt 0:00:37]} 0-1

[Event "3rd Manaus Open 2024"]
[Site "Manaus"]
[Date "2024.10.12"]
[Round "2.5"]
[White "Di Berardino, Diego Rafael"]
[Black "Mesquita, Eduardo Barbosa"]
[Result "1-0"]
[ECO "E17"]
[WhiteElo "2479"]
[BlackElo "1999"]
[Annotator "RC"]
[PlyCount "105"]
[EventDate "2024.10.05"]
[EventType "swiss"]
[EventCountry "BRA"]
[SourceTitle "playchess.com"]
[Source "ChessBase"]
[SourceQuality "1"]
[TimeControl "5400+30"]

1. Nf3 {[%emt 0:06:42]} Nf6 {[%emt 0:00:39]} 2. c4 {[%emt 0:00:08]} e6 {[%emt 0:00:42]} 3. g3 {[%emt 0:00:07]} d5 {[%emt 0:00:48]} 4. Bg2 {[%emt 0:00:04]} Be7 {[%emt 0:00:45]} 5. O-O {[%emt 0:00:08]} O-O {[%emt 0:00:08]} 6. b3 {[%emt 0:00:07]} b6 {[%emt 0:01:44]} 7. Bb2 {[%emt 0:01:39]} Nbd7 {[%emt 0:00:43]} 8. cxd5 {[%emt 0:02:45]} exd5 {[%emt 0:01:14]} 9. d4 {[%emt 0:09:06]} c5 {[%emt 0:01:19]} 10. Nc3 {[%emt 0:02:55]} Bb7 {[%emt 0:01:09]} 11. Nh4 {[%emt 0:16:21]} Re8 {[%emt 0:04:25]} 12. Nf5 {[%emt 0:02:09]} Bf8 {[%emt 0:04:10]} 13. dxc5 {[%emt 0:00:08]} Nxc5 {[%emt 0:01:07]} 14. Qd2 {[%emt 0:09:06]} h6 {[%emt 0:15:37]} 15. Rad1 {[%emt 0:00:39]} Rc8 {[%emt 0:08:35]} 16. Rfe1 {[%emt 0:09:30]} Nfe4 {[%emt 0:08:57]} 17. Nxe4 {[%emt 0:02:08]} Nxe4 {[%emt 0:02:59]} 18. Qf4 {[%emt 0:00:05]} Qg5 {[%emt 0:03:17]} 19. Qxg5 {[%emt 0:17:40]} hxg5 {[%emt 0:04:27]} 20. Rc1 {[%emt 0:00:36]} Ba6 {[%emt 0:05:59]} 21. f3 {[%emt 0:05:55]} Rxc1 {[%emt 0:04:04]} 22. Rxc1 {[%emt 0:00:03]} Nc5 {[%emt 0:01:39]} 23. Nd4 {[%emt 0:08:26]} Bxe2 {[%emt 0:03:07]} 24. Re1 {[%emt 0:01:29]} Bb5 {[%emt 0:01:03]} 25. Rxe8 {[%emt 0:00:31]} Bxe8 {[%emt 0:00:09]} 26. Bc1 {[%emt 0:01:07]} f6 {[%emt 0:06:08]} 27. f4 {[%emt 0:01:19]} gxf4 {[%emt 0:02:11]} 28. Bxd5+ {[%emt 0:00:09]} Bf7 {[%emt 0:00:13]} 29. Bxf7+ {[%emt 0:00:04]} Kxf7 {[%emt 0:00:09]} 30. Bxf4 {[%emt 0:00:34]} Nd3 {[%emt 0:01:08]} 31. Kg2 {[%emt 0:00:33]} a6 {[%emt 0:02:32]} 32. Kf3 {[%emt 0:00:55]} g5 {[%emt 0:02:51]} 33. Bd2 {[%emt 0:01:07]} Bc5 {[%emt 0:01:13]} 34. Ke4 {[%emt 0:01:23]} Nf2+ {[%emt 0:00:29]} 35. Kd5 {[%emt 0:00:07]} Ng4 {[%emt 0:00:25]} 36. h4 {[%emt 0:00:10]} gxh4 {[%emt 0:00:22]} 37. gxh4 {[%emt 0:00:03]} Ne5 {[%emt 0:02:40]} 38. Bc3 {[%emt 0:01:29]} Ng6 {[%emt 0:01:47]} 39. Nf5 {[%emt 0:00:38]} Bf2 {[%emt 0:00:42]} 40. Kc6 {[%emt 0:00:15]} b5 {[%emt 0:00:29]} 41. h5 {[%emt 0:00:38]} Nf4 {[%emt 0:00:57]} 42. Nd6+ {[%emt 0:01:21]} Ke6 {[%emt 0:00:32]} 43. h6 {[%emt 0:00:31]} Nd5 {[%emt 0:04:08]} 44. h7 {[%emt 0:00:08]} Ne7+ {[%emt 0:00:20]} 45. Kb7 {[%emt 0:00:11]} Ng6 {[%emt 0:00:24]} 46. Ne4 {[%emt 0:00:34]} Bh4 {[%emt 0:00:51]} 47. Kxa6 {[%emt 0:00:08]} f5 {[%emt 0:00:46]} 48. Nc5+ {[%emt 0:00:22]} Kd5 {[%emt 0:01:00]} 49. Kxb5 {[%emt 0:01:12]} f4 {[%emt 0:01:05]} 50. h8=Q {[%emt 0:00:53]} Nxh8 {[%emt 0:00:12]} 51. Bxh8 {[%emt 0:00:04]} f3 {[%emt 0:00:21]} 52. Nd3 {[%emt 0:00:03]} Bg3 {[%emt 0:00:52]} 53. a4 {[%emt 0:00:31]} 1-0

[Event "3rd Manaus Open 2024"]
[Site "Manaus"]
[Date "2024.10.12"]
[Round "2.6"]
[White "Da Silva, Pablo Rodrigo"]
[Black "Santiago, Yago De Moura"]
[Result "0-1"]
[ECO "A81"]
[WhiteElo "1983"]
[BlackElo "2460"]
[Annotator "TA"]
[PlyCount "98"]
[EventDate "2024.10.05"]
[EventType "swiss"]
[EventCountry "BRA"]
[SourceTitle "playchess.com"]
[Source "ChessBase"]
[SourceQuality "1"]
[TimeControl "5400+30"]

{[%evp 9,98,73,98,92,96,64,70,62,99,45,52,45,87,45,85,32,42,-24,-37,-32,11,-70,0,-57,23,14,38,31,76,90,72,70,125,80,82,97,120,62,53,0,62,-43,63,67,73,0,78,-13,-15,-78,-74,-88,-63,-218,-92,-99,-38,-39,-36,-156,-17,-17,0,-95,-104,-171,-200,-289,-317,-328,-328,-321,-240,-334,-398,-366,-361,-375,-384,-395,-382,-333,-293,-363,-368,-29994,-29995,-29995,-29996,-29996,-869]} 1. d4 {[%emt 0:00:15]} e6 {[%emt 0:00:52]} 2. g3 {[%emt 0:00:41]} f5 {[%emt 0:00:13]} 3. Bg2 {[%emt 0:00:18]} Nf6 {[%emt 0:00:07]} 4. Nf3 {[%emt 0:01:38]} d5 {[%emt 0:00:09]} 5. O-O {[%emt 0:00:09]} Ne4 {[%emt 0:00:12] [#]} 6. c4 $1 {[%emt 0:00:30] A81: Hollandse Verdediging: 2 g3.} Be7 {[%emt 0:00:09]} (6... c6 7. Bf4) 7. Ne5 {[%emt 0:05:00] Onnauwkeurig} O-O {[%emt 0:00:31] OK} 8. Nd2 {[%emt 0:00:15] Wit staat iets beter.} c6 {[%emt 0:00:19] Onnauwkeurig} 9. e3 {[%emt 0:07:44] Fout (0.5)} (9. Qc2 $16) 9... Nd7 $146 {[%emt 0:02:08] OK} ({Predecessor:} 9... Nxd2 10. Bxd2 Nd7 11. Nxd7 Bxd7 12. Qb3 Qb6 13. c5 Qxb3 14. axb3 a6 15. Ba5 Rae8 16. Bc7 Bf6 {0-1 Keller,H (1603)-Hund,R (1688) Muensterland Cup-B 0910 sf 2009}) 10. Ndf3 {[%emt 0:00:26] OK} Bd6 {[%emt 0:01:39] Onnauwkeurig} 11. Qc2 {[%emt 0:08:44] Onnauwkeurig} Qe7 {[%emt 0:02:02] Onnauwkeurig} 12. Nxd7 {[%emt 0:08:38] Fout (0.5)} (12. b3 $16) 12... Bxd7 {[%emt 0:00:18]} 13. c5 {[%emt 0:00:10] Fout (0.7)} (13. Ne5 $14) 13... Bc7 $11 {[%emt 0:00:26] OK} 14. b4 {[%emt 0:00:20]} a5 {[%emt 0:07:04] Onnauwkeurig} 15. Bd2 {[%emt 0:02:46] Fout (0.8)} (15. bxa5 $11 Rxa5 16. a4) 15... a4 {[%emt 0:00:51] Zwart heeft actievere stukken. Fout (0.7)} (15... Nxd2 $15 16. Qxd2 a4) 16. a3 {[%emt 0:00:56] Fout (0.6)} (16. Ne5 $11) 16... Be8 {[%emt 0:00:27] Fout (0.8)} (16... g5 $15) 17. Ne5 $1 {[%emt 0:02:16] Sterk} Nf6 {[%emt 0:11:12]} 18. f3 {[%emt 0:04:59] OK} Bxe5 {[%emt 0:03:12] Onnauwkeurig} 19. dxe5 {[%emt 0:00:15]} Nd7 {[%emt 0:00:07] OK} 20. Bc3 {[%emt 0:02:34] OK} {Zwart zou moeten spelen} g5 {[%emt 0:01:25] Zwart is zwak op de donkere velden. Fout (0.6)} (20... Nb8 $14) 21. Bd4 {[%emt 0:16:25] Onnauwkeurig} f4 {[%emt 0:01:42]} 22. exf4 {[%emt 0:06:08] OK} gxf4 {[%emt 0:00:14]} 23. Rac1 {[%emt 0:06:34] Fout (0.6)} (23. Kh1 $16) 23... Bg6 {[%emt 0:02:59]} 24. Qe2 {[%emt 0:01:19] Fout (0.5)} (24. Qd2 $14) 24... Rf7 {[%emt 0:02:50] Fout (0.6)} (24... Qg5 $11) 25. g4 {[%emt 0:04:06] Fout (1.1)} (25. Qd2 $14) 25... Nb8 {[%emt 0:01:00] Fout (1.1)} (25... h5 $15) 26. Rf2 {[%emt 0:01:14]} Na6 {[%emt 0:01:19][%cal Bb8a6,Ba6c7,Bc7b5][%mdl 32] EV=13.35. Goes to b5 (dbg))} 27. Qb2 {[%emt 0:00:42] Fout (0.7)} (27. Bf1 $16) 27... Bd3 {[%emt 0:01:32] Fout (0.8)} (27... h5 $11) {Wit zou moeten proberen} 28. Bf1 {[%emt 0:07:11] Fout (0.9)} (28. Kh1 $16) 28... Bxf1 {[%emt 0:01:07] OK} 29. Rfxf1 {[%emt 0:00:21] Houdt de partij in balans. Fout (0.6)} (29. Rcxf1 $11 Nc7 30. Rg2) 29... Nc7 $17 {[%emt 0:00:13][%cal Oh7h5] OK} 30. Qf2 {[%emt 0:01:06]} Nb5 {[%emt 0:00:25]} 31. Ra1 {[%emt 0:00:13] Fout (1.6)} (31. Bb2 $1 $15) 31... Rg7 {[%emt 0:01:49] is dodelijker. Fout (1.3)} (31... h5 $1 $19 {En nu zou ...hxg4 winnen.} 32. gxh5 Rf5) 32. Kh1 {[%emt 0:00:28]} {Zwart zou moeten proberen} Kh8 {[%emt 0:00:37] Fout (0.6)} (32... h5 $17 {[%cal Rh5g4]} 33. gxh5 Kh7) 33. Rg1 $15 {[%emt 0:04:09] OK} Rag8 {[%emt 0:02:05][%cal Oh7h5] Hoopt vervolgens op ...h5! OK} {Wit zou moeten spelen} 34. Qd2 {[%emt 0:01:55] Fout (1.2)} (34. h3 $15) {Beter is} 34... Rf7 {[%emt 0:01:36] Fout (1.4)} (34... h5 $1 $17 {[%cal Rh5g4]} 35. Qxf4 (35. gxh5 Rxg1+ 36. Rxg1 Rxg1+ 37. Bxg1 Qg5 $17) 35... Qf7 36. Qxf7 Rxf7) 35. Bf2 $11 {[%emt 0:00:45] Beste (Gemakkelijk)} Qc7 {[%emt 0:06:30]} 36. Rge1 {[%emt 0:01:35] blijft gelijk. Fout (1.0)} (36. Qe2 $11) 36... Qd8 $17 {[%emt 0:01:19] OK} 37. Red1 {[%emt 0:01:45] [#] gaat door met vechten. Fout (0.7)} (37. h4 $17) 37... h5 $1 $19 {[%emt 0:02:15][%cal Rh5g4] Sterk} 38. Qe1 {[%emt 0:00:53] Een waardevolle zet. Fout (0.9)} ({Veel slechter is} 38. Rg1 hxg4 39. fxg4 (39. Rxg4 $2 Rxg4 40. fxg4 Qg5 $19) 39... d4 (39... Qg5 40. Qd3 $17)) (38. h3) 38... hxg4 {[%emt 0:00:43] Beste (Gemakkelijk)} 39. Bh4 {[%emt 0:00:10] OK} Qf8 {[%emt 0:00:49] OK} 40. Bf6+ {[%emt 0:01:20]} Kh7 {[%emt 0:00:46][%cal Rf7f6] met als doel voor ...Rxf6.} 41. Qf2 {[%emt 0:01:36] Onnauwkeurig} g3 {[%emt 0:45:47] OK} 42. Qc2+ {[%emt 0:00:56] OK} Rg6 {[%emt 0:00:00] Beste (Gemakkelijk)} 43. hxg3 {[%emt 0:00:19] Beste} fxg3 {[%emt 0:00:00]} (43... Qh6+ 44. Kg2 Kg8 (44... fxg3 $2 {slaat de verkeerde figuur.} 45. Rh1 $18) 45. g4 $11) 44. Kg2 {[%emt 0:00:14] [#] Rh1+ zou dodelijk zijn nu. Beste} Rfxf6 $1 {[%emt 0:00:00] Sterk} ({Maar niet} 44... Qh6 $2 45. Rh1 $18 (45. Qxa4 $2 {is een zelfmat.} Qh2+ 46. Kf1 Qf2#) (45. Qxa4 $2 {Leidt naar mat.} Qh2+ 46. Kf1 Qf2#)) 45. exf6 {[%emt 0:00:22]} Qxf6 {[%emt 0:00:00]} 46. Rh1+ {[%emt 0:00:15]} Kg7 {[%emt 0:00:00] Beste} 47. Qxa4 $2 {[%emt 0:02:10] Fout (Mat)} (47. Rad1 $19) 47... Qb2+ {[%emt 0:00:00] Beste. Zwart zet mat.} 48. Kh3 {[%emt 0:00:28] OK} g2 {[%emt 0:03:30]} 49. Qc2 {[%emt 0:01:47]} Qf6 {[%emt 0:00:30] Blunder waarde: Wit=0.57/Zwart=0.29 (precies) .  Fout:        	Wit=17     	Zwart=9      Onnauwkeurig:    	Wit=4      	Zwart=5      OK:         	Wit=8      	Zwart=10     Beste:        	Wit=3      	Zwart=4      Sterk:        	Wit=1      	Zwart=2} (49... Qxc2 $142 50. Rhg1 Qf2 (50... Qf5+ $2 {wordt mat gezet.} 51. Kh4 Qg5+ 52. Kh3 Rh6#) 51. Rxg2 Qxg2+ 52. Kh4 Rh6#) 0-1

[Event "3rd Manaus Open 2024"]
[Site "Manaus"]
[Date "2024.10.12"]
[Round "2.7"]
[White "Flom, Gabriel"]
[Black "Pinto, Pedro Jorge de Morae"]
[Result "1-0"]
[ECO "A44"]
[WhiteElo "2460"]
[BlackElo "1959"]
[Annotator "TA"]
[PlyCount "41"]
[EventDate "2024.10.05"]
[EventType "swiss"]
[EventCountry "BRA"]
[SourceTitle "playchess.com"]
[Source "ChessBase"]
[SourceQuality "1"]
[TimeControl "5400+30"]

{[%evp 9,41,133,191,162,184,181,184,165,195,155,198,98,212,188,306,285,340,291,359,320,500,447,435,420,641,629,662,659,644,654,893,883,1168,1136]} 1. d4 {[%emt 0:00:13]} c5 {[%emt 0:04:22]} 2. d5 {[%emt 0:00:14]} e5 {[%emt 0:00:19]} 3. e4 {[%emt 0:01:50]} d6 {[%emt 0:00:10]} 4. a4 {[%emt 0:01:49]} a6 {[%emt 0:01:33]} 5. Nc3 {[%emt 0:00:35]} f5 {[%emt 0:00:16]} (5... Be7 $16) 6. exf5 $18 {[%emt 0:00:54] A44: Semi-Benoni.} Bxf5 {[%emt 0:00:07]} 7. Bd3 {[%emt 0:00:05] OK} Bxd3 {[%emt 0:03:44] OK} 8. Qxd3 {[%emt 0:00:08] Wit staat duidelijk beter.} ({Weersta} 8. cxd3 $6 Nd7 $14) 8... Be7 {[%emt 0:00:04]} 9. Nf3 {[%emt 0:00:18]} Nd7 {[%emt 0:01:18]} 10. Ne4 {[%emt 0:01:15] Fout (1.0)} (10. a5 $18) 10... Qc8 $146 {[%emt 0:03:52] gaat door met vechten. Fout (1.1)} (10... Ngf6 $16) ({Predecessor:} 10... Nf8 11. Nfd2 Nf6 12. Nxf6+ gxf6 13. a5 Qd7 14. Nc4 Bd8 15. f4 Ng6 16. O-O Rg8 {1-0 Tobyas,M (2310)-Mozny,M (2375) Prague T10 1990 (11)}) 11. Nfg5 {[%emt 0:02:19] OK} Nf8 {[%emt 0:00:23] is een betere verdediging. Afleidend Ne6. Fout (1.2)} (11... Ngf6 12. Nxf6+ Nxf6) 12. f4 {[%emt 0:01:11] OK} h6 {[%emt 0:20:44] Beste} 13. Nf3 {[%emt 0:00:05][%cal Bg5f3,Bf3d2,Bd2c4][%mdl 32] EV=32.39. Goes to c4 (dbg)). OK} exf4 {[%emt 0:00:11]} 14. Bxf4 {[%emt 0:00:26]} Qd7 {[%emt 0:00:01] Kan vruchtbaar zijn. Fout (1.8)} (14... Qc7 15. Nfd2 O-O-O) 15. O-O {[%emt 0:01:24] [#] En nu zou Nfd2 winnen.} Nf6 {[%emt 0:04:48]} 16. Nfd2 {[%emt 0:00:04]} Nxe4 {[%emt 0:01:35] Fout (2.2)} (16... N8h7 $142 17. Nxf6+ Bxf6 18. Rae1+ Kd8) 17. Qxe4 {[%emt 0:01:00] met als doel voor Nc4. Wit is duidelijk aan het winnen.} O-O-O {[%emt 0:01:58] OK} 18. Nc4 {[%emt 0:00:02]} Qc7 {[%emt 0:04:41] Voorkomt Nb6+.} 19. Bd2 {[%emt 0:00:06]} b6 {[%emt 0:02:44] Zwart is zwak op de lichte velden} 20. Rf7 {[%emt 0:00:13][%csl LRe7,LRg7]} Rd7 {[%emt 0:00:28]} 21. a5 {[%emt 0:00:32] Blunder waarde: Wit=0.16 (erg precies) /Zwart=0.98.  Fout:        	Wit=1      	Zwart=4      OK:         	Wit=4      	Zwart=2      Beste:        	---       	Zwart=1} 1-0

[Event "3rd Manaus Open 2024"]
[Site "Manaus"]
[Date "2024.10.12"]
[Round "2.8"]
[White "Rodriguez Vila, Andres"]
[Black "Do Carmo, Gabriel Carckeno"]
[Result "1-0"]
[ECO "C02"]
[WhiteElo "2419"]
[BlackElo "1941"]
[Annotator "RC"]
[PlyCount "43"]
[EventDate "2024.10.05"]
[EventType "swiss"]
[EventCountry "BRA"]
[SourceTitle "playchess.com"]
[Source "ChessBase"]
[SourceQuality "1"]
[TimeControl "5400+30"]

1. e4 {[%emt 0:02:19]} e6 {[%emt 0:00:18]} 2. d4 {[%emt 0:00:07]} d5 {[%emt 0:00:16]} 3. e5 {[%emt 0:00:05]} c5 {[%emt 0:00:16]} 4. c3 {[%emt 0:00:05]} Nc6 {[%emt 0:00:11]} 5. Nf3 {[%emt 0:00:05]} Qb6 {[%emt 0:00:39]} 6. Bd3 {[%emt 0:00:08]} cxd4 {[%emt 0:00:49]} 7. O-O {[%emt 0:00:20]} Bd7 {[%emt 0:00:19]} 8. cxd4 {[%emt 0:02:27]} Nxd4 {[%emt 0:01:24]} 9. Nbd2 {[%emt 0:00:04]} Nc6 {[%emt 0:16:47]} 10. Nb3 {[%emt 0:00:05]} Nh6 {[%emt 0:10:47]} 11. Bf4 {[%emt 0:01:54]} Nb4 {[%emt 0:08:28]} 12. Be2 {[%emt 0:02:16]} Rc8 {[%emt 0:01:34]} 13. Be3 {[%emt 0:09:04]} Qd8 {[%emt 0:00:31]} 14. Nbd4 {[%emt 0:00:27]} a6 {[%emt 0:04:10]} 15. Qb3 {[%emt 0:01:58]} Qa5 {[%emt 0:07:34]} 16. a3 {[%emt 0:01:32]} Nc6 {[%emt 0:06:45]} 17. Qxb7 {[%emt 0:00:06]} Nf5 {[%emt 0:10:22]} 18. Rfc1 {[%emt 0:05:20]} Qc7 {[%emt 0:06:09]} 19. Qxc7 {[%emt 0:01:13]} Rxc7 {[%emt 0:00:06]} 20. Nxf5 {[%emt 0:00:35]} exf5 {[%emt 0:00:11]} 21. Bxa6 {[%emt 0:00:12]} d4 {[%emt 0:01:30]} 22. Nxd4 {[%emt 0:01:38]} 1-0